[Event "Titled Tuesday Blitz November 01 Late 2022"]
[White "Bortnyk, Olexandr"]
[Black "Boruchovsky, Avital"]
[WhiteFideId "14120828"]
[BlackFideId "2800055"]
[WhiteElo "2723"]
[BlackElo "2466"]
[Result "1-0"]
[Round "06"]
[TimeControl "180+1"]
[Date "2022.11.01"]
[WhiteClock "0:00:02"]
[BlackClock "0:00:02"]

1. d4 {[%clk 0:02:57]}  d5 {[%clk 0:02:58]} 2. Nc3 {[%clk 0:02:56]}  Nf6 {[%clk 0:02:57]} 3. Bf4 {[%clk 0:02:57]}  a6 {[%clk 0:02:55]} 4. e3 {[%clk 0:02:57]}  c5 {[%clk 0:02:54]} 5. dxc5 {[%clk 0:02:56]}  Nc6 {[%clk 0:02:52]} 6. a3 {[%clk 0:02:55]}  e5 {[%clk 0:02:50]} 7. Bg5 {[%clk 0:02:55]}  Be6 {[%clk 0:02:48]} 8. b4 {[%clk 0:02:55]}  Be7 {[%clk 0:02:45]} 9. Nf3 {[%clk 0:02:54]}  h6 {[%clk 0:02:39]} 10. Bh4 {[%clk 0:02:53]}  g5 {[%clk 0:02:34]} 11. Bg3 {[%clk 0:02:51]}  d4 {[%clk 0:02:35]} 12. exd4 {[%clk 0:02:22]}  exd4 {[%clk 0:02:34]} 13. Ne2 {[%clk 0:02:23]}  Ne4 {[%clk 0:02:04]} 14. Nfxd4 {[%clk 0:01:39]}  Bf6 {[%clk 0:01:57]} 15. Nxe6 {[%clk 0:01:35]}  fxe6 {[%clk 0:01:52]} 16. Qxd8+ {[%clk 0:01:30]}  Rxd8 {[%clk 0:01:53]} 17. Rd1 {[%clk 0:01:30]}  O-O {[%clk 0:01:44]} 18. f3 {[%clk 0:01:02]}  Nxg3 {[%clk 0:01:23]} 19. hxg3 {[%clk 0:01:01]}  Kg7 {[%clk 0:01:20]} 20. c3 {[%clk 0:00:53]}  Be5 {[%clk 0:00:57]} 21. g4 {[%clk 0:00:48]}  Rfe8 {[%clk 0:00:49]} 22. g3 {[%clk 0:00:48]}  Ne7 {[%clk 0:00:28]} 23. f4 {[%clk 0:00:47]}  Bf6 {[%clk 0:00:28]} 24. Bg2 {[%clk 0:00:45]}  Nd5 {[%clk 0:00:28]} 25. Bxd5 {[%clk 0:00:44]}  exd5 {[%clk 0:00:27]} 26. Kf2 {[%clk 0:00:44]}  Re4 {[%clk 0:00:26]} 27. Nd4 {[%clk 0:00:37]}  gxf4 {[%clk 0:00:26]} 28. Nf5+ {[%clk 0:00:37]}  Kg6 {[%clk 0:00:20]} 29. Rxh6+ {[%clk 0:00:37]}  Kg5 {[%clk 0:00:20]} 30. Rdh1 {[%clk 0:00:30]}  fxg3+ {[%clk 0:00:19]} 31. Nxg3 {[%clk 0:00:27]}  Rf4+ {[%clk 0:00:19]} 32. Kg2 {[%clk 0:00:25]}  Kxg4 {[%clk 0:00:11]} 33. Rg6+ {[%clk 0:00:21]}  Bg5 {[%clk 0:00:11]} 34. Rh5 {[%clk 0:00:22]}  Rf5 {[%clk 0:00:11]} 35. Nxf5 {[%clk 0:00:18]}  Kxh5 {[%clk 0:00:11]} 36. Rg7 {[%clk 0:00:19]}  Rf8 {[%clk 0:00:12]} 37. Nd4 {[%clk 0:00:16]}  Bd2 {[%clk 0:00:10]} 38. Rxb7 {[%clk 0:00:14]}  Bxc3 {[%clk 0:00:11]} 39. Ne6 {[%clk 0:00:11]}  Rf6 {[%clk 0:00:08]} 40. Re7 {[%clk 0:00:11]}  d4 {[%clk 0:00:09]} 41. c6 {[%clk 0:00:10]}  d3 {[%clk 0:00:09]} 42. c7 {[%clk 0:00:10]}  Rg6+ {[%clk 0:00:08]} 43. Kf3 {[%clk 0:00:10]}  d2 {[%clk 0:00:08]} 44. Rd7 {[%clk 0:00:06]}  Rg8 {[%clk 0:00:06]} 45. Nd8 {[%clk 0:00:06]}  Rg7 {[%clk 0:00:05]} 46. c8=Q {[%clk 0:00:04]}  Re7 {[%clk 0:00:03]} 47. Rd5+ {[%clk 0:00:02]}  Kh6 {[%clk 0:00:03]} 48. Qxc3 {[%clk 0:00:02]}  d1=Q+ {[%clk 0:00:02]} 49. Rxd1 {[%clk 0:00:02]} 1-0


[Site "https://www.chess.com"]

[Event "Titled Tuesday Blitz November 01 Late 2022"]
[White "Burke, Paul"]
[Black "Saucey, Michel"]
[WhiteFideId "2605767"]
[BlackFideId "601845"]
[WhiteElo "1869"]
[BlackElo "2253"]
[Result "0-1"]
[Round "06"]
[TimeControl "180+1"]
[Date "2022.11.02"]
[WhiteClock "0:00:35"]
[BlackClock "0:00:32"]

1. e4 {[%clk 0:03:00]}  c5 {[%clk 0:02:59]} 2. d4 {[%clk 0:03:00]}  cxd4 {[%clk 0:02:59]} 3. c3 {[%clk 0:03:00]}  dxc3 {[%clk 0:02:59]} 4. Nxc3 {[%clk 0:03:00]}  Nc6 {[%clk 0:02:59]} 5. Nf3 {[%clk 0:03:01]}  d6 {[%clk 0:02:58]} 6. Bc4 {[%clk 0:03:00]}  a6 {[%clk 0:02:58]} 7. O-O {[%clk 0:02:59]}  Nf6 {[%clk 0:02:57]} 8. h3 {[%clk 0:02:57]}  e6 {[%clk 0:02:55]} 9. Qe2 {[%clk 0:02:56]}  Be7 {[%clk 0:02:53]} 10. Rd1 {[%clk 0:02:56]}  Qc7 {[%clk 0:02:49]} 11. Bg5 {[%clk 0:02:53]}  O-O {[%clk 0:02:24]} 12. a3 {[%clk 0:02:51]}  b5 {[%clk 0:02:21]} 13. Ba2 {[%clk 0:02:45]}  Ne5 {[%clk 0:02:19]} 14. Nd4 {[%clk 0:02:36]}  Qb7 {[%clk 0:02:17]} 15. f4 {[%clk 0:02:26]}  Nc4 {[%clk 0:02:16]} 16. Kh2 {[%clk 0:02:13]}  Re8 {[%clk 0:02:06]} 17. Rac1 {[%clk 0:02:11]}  Bd7 {[%clk 0:02:02]} 18. Bb1 {[%clk 0:02:11]}  Rac8 {[%clk 0:01:55]} 19. Bxf6 {[%clk 0:01:57]}  Bxf6 {[%clk 0:01:54]} 20. e5 {[%clk 0:01:58]}  dxe5 {[%clk 0:01:53]} 21. fxe5 {[%clk 0:01:58]}  Bxe5+ {[%clk 0:01:48]} 22. Kh1 {[%clk 0:01:50]}  Bxd4 {[%clk 0:01:41]} 23. Rxd4 {[%clk 0:01:49]}  g6 {[%clk 0:01:39]} 24. Ne4 {[%clk 0:01:42]}  Bc6 {[%clk 0:01:34]} 25. Nf6+ {[%clk 0:01:40]}  Kg7 {[%clk 0:01:34]} 26. Nxe8+ {[%clk 0:01:40]}  Rxe8 {[%clk 0:01:33]} 27. b3 {[%clk 0:01:37]}  Nb6 {[%clk 0:01:31]} 28. Qb2 {[%clk 0:01:33]}  Kg8 {[%clk 0:01:29]} 29. Qc2 {[%clk 0:01:29]}  Bd5 {[%clk 0:01:28]} 30. Qf2 {[%clk 0:01:03]}  Nd7 {[%clk 0:01:22]} 31. Rd2 {[%clk 0:00:57]}  f5 {[%clk 0:01:17]} 32. Rdc2 {[%clk 0:00:57]}  Qb6 {[%clk 0:00:53]} 33. Qh4 {[%clk 0:00:47]}  Qe3 {[%clk 0:00:41]} 34. Rc8 {[%clk 0:00:42]}  Rf8 {[%clk 0:00:34]} 35. Rxf8+ {[%clk 0:00:40]}  Nxf8 {[%clk 0:00:33]} 36. Qe1 {[%clk 0:00:35]}  Qxh3+ {[%clk 0:00:32]} 0-1


[Site "https://www.chess.com"]

[Event "Titled Tuesday Blitz November 01 Late 2022"]
[White "Castellanos Gomez, Alejandro"]
[Black "Kaplan, Avi Harrison"]
[WhiteFideId "22284141"]
[BlackFideId "30934559"]
[WhiteElo "2168"]
[BlackElo "1983"]
[Result "0-1"]
[Round "06"]
[TimeControl "180+1"]
[Date "2022.11.02"]
[WhiteClock "0:00:01"]
[BlackClock "0:00:05"]

1. d4 {[%clk 0:03:00]}  Nf6 {[%clk 0:02:59]} 2. Bf4 {[%clk 0:02:59]}  c5 {[%clk 0:02:59]} 3. e3 {[%clk 0:03:00]}  Qb6 {[%clk 0:02:59]} 4. Na3 {[%clk 0:02:59]}  d6 {[%clk 0:02:57]} 5. c3 {[%clk 0:02:55]}  g6 {[%clk 0:02:48]} 6. Nc4 {[%clk 0:02:52]}  Qc7 {[%clk 0:02:48]} 7. Nf3 {[%clk 0:02:51]}  Bg7 {[%clk 0:02:41]} 8. Be2 {[%clk 0:02:49]}  Nh5 {[%clk 0:02:41]} 9. Bg5 {[%clk 0:02:47]}  h6 {[%clk 0:02:33]} 10. Bh4 {[%clk 0:02:47]}  g5 {[%clk 0:02:33]} 11. Nfd2 {[%clk 0:02:46]}  Nf6 {[%clk 0:02:23]} 12. Bg3 {[%clk 0:02:44]}  b5 {[%clk 0:02:22]} 13. dxc5 {[%clk 0:02:13]}  bxc4 {[%clk 0:02:16]} 14. cxd6 {[%clk 0:02:13]}  exd6 {[%clk 0:02:04]} 15. Nxc4 {[%clk 0:02:12]}  O-O {[%clk 0:01:57]} 16. Bxd6 {[%clk 0:02:08]}  Qd7 {[%clk 0:01:53]} 17. Bxf8 {[%clk 0:02:05]}  Bxf8 {[%clk 0:01:50]} 18. Bf3 {[%clk 0:02:01]}  Nc6 {[%clk 0:01:30]} 19. Na5 {[%clk 0:01:56]}  Nxa5 {[%clk 0:01:12]} 20. Qxd7 {[%clk 0:01:53]}  Bxd7 {[%clk 0:01:10]} 21. Bxa8 {[%clk 0:01:53]}  Nc4 {[%clk 0:01:09]} 22. b3 {[%clk 0:01:52]}  Ne5 {[%clk 0:01:05]} 23. g3 {[%clk 0:01:37]}  Bb5 {[%clk 0:00:50]} 24. c4 {[%clk 0:01:36]}  Bb4+ {[%clk 0:00:50]} 25. Ke2 {[%clk 0:01:35]}  Bd7 {[%clk 0:00:45]} 26. Bg2 {[%clk 0:01:29]}  Bf5 {[%clk 0:00:36]} 27. Rhd1 {[%clk 0:01:25]}  Kf8 {[%clk 0:00:36]} 28. a3 {[%clk 0:01:07]}  Bc3 {[%clk 0:00:31]} 29. Ra2 {[%clk 0:01:07]}  Ne4 {[%clk 0:00:27]} 30. f3 {[%clk 0:01:05]}  Ba5 {[%clk 0:00:12]} 31. Rd5 {[%clk 0:00:27]}  Nc3+ {[%clk 0:00:12]} 32. Kf2 {[%clk 0:00:26]}  Nxd5 {[%clk 0:00:09]} 33. cxd5 {[%clk 0:00:24]}  Nd3+ {[%clk 0:00:10]} 34. Kg1 {[%clk 0:00:22]}  Bb6 {[%clk 0:00:09]} 35. h3 {[%clk 0:00:12]}  Bxe3+ {[%clk 0:00:09]} 36. Kh2 {[%clk 0:00:12]}  Nc1 {[%clk 0:00:09]} 37. Rb2 {[%clk 0:00:12]}  Nd3 {[%clk 0:00:06]} 38. Rc2 {[%clk 0:00:10]}  h5 {[%clk 0:00:05]} 39. Rc7 {[%clk 0:00:07]}  h4 {[%clk 0:00:05]} 40. Rb7 {[%clk 0:00:04]}  hxg3+ {[%clk 0:00:05]} 41. Kh1 {[%clk 0:00:01]}  Nf2+ {[%clk 0:00:05]} 0-1


[Site "https://www.chess.com"]

[Event "Titled Tuesday Blitz November 01 Late 2022"]
[White "Clawitter, Craig"]
[Black "Roman, Rodrigo"]
[WhiteFideId "2023105"]
[BlackFideId "3701220"]
[WhiteElo "2320"]
[BlackElo "2001"]
[Result "0-1"]
[Round "06"]
[TimeControl "180+1"]
[Date "2022.11.02"]
[WhiteClock "0:00:01"]
[BlackClock "0:00:05"]

1. e4 {[%clk 0:03:00]}  c6 {[%clk 0:02:40]} 2. d4 {[%clk 0:02:59]}  d5 {[%clk 0:02:40]} 3. e5 {[%clk 0:02:59]}  Bf5 {[%clk 0:01:26]} 4. Nf3 {[%clk 0:02:58]}  h5 {[%clk 0:01:25]} 5. Be2 {[%clk 0:02:56]}  e6 {[%clk 0:01:24]} 6. O-O {[%clk 0:02:56]}  c5 {[%clk 0:01:25]} 7. Be3 {[%clk 0:02:53]}  Nc6 {[%clk 0:01:23]} 8. dxc5 {[%clk 0:02:48]}  Qc7 {[%clk 0:01:22]} 9. c4 {[%clk 0:02:37]}  Rd8 {[%clk 0:01:17]} 10. cxd5 {[%clk 0:02:25]}  Rxd5 {[%clk 0:01:18]} 11. Qc1 {[%clk 0:02:13]}  Bxb1 {[%clk 0:01:00]} 12. Rxb1 {[%clk 0:02:06]}  g6 {[%clk 0:00:45]} 13. b4 {[%clk 0:01:48]}  a6 {[%clk 0:00:28]} 14. Bc4 {[%clk 0:01:45]}  Rd7 {[%clk 0:00:23]} 15. Rd1 {[%clk 0:01:35]}  Bg7 {[%clk 0:00:20]} 16. Rxd7 {[%clk 0:01:28]}  Qxd7 {[%clk 0:00:20]} 17. b5 {[%clk 0:01:17]}  axb5 {[%clk 0:00:12]} 18. Bxb5 {[%clk 0:01:17]}  Nge7 {[%clk 0:00:13]} 19. Qe1 {[%clk 0:00:46]}  O-O {[%clk 0:00:11]} 20. Rd1 {[%clk 0:00:46]}  Nd5 {[%clk 0:00:11]} 21. Bc4 {[%clk 0:00:41]}  Nce7 {[%clk 0:00:08]} 22. Bd4 {[%clk 0:00:22]}  Ra8 {[%clk 0:00:07]} 23. Ng5 {[%clk 0:00:18]}  Nf5 {[%clk 0:00:07]} 24. Bb2 {[%clk 0:00:07]}  Rc8 {[%clk 0:00:04]} 25. Ne4 {[%clk 0:00:07]}  Qe7 {[%clk 0:00:03]} 26. Nd6 {[%clk 0:00:06]}  Nxd6 {[%clk 0:00:03]} 27. exd6 {[%clk 0:00:07]}  Qf8 {[%clk 0:00:03]} 28. Bxg7 {[%clk 0:00:06]}  Qxg7 {[%clk 0:00:04]} 29. Bxd5 {[%clk 0:00:06]}  exd5 {[%clk 0:00:05]} 30. Rxd5 {[%clk 0:00:06]}  Qb2 {[%clk 0:00:05]} 31. d7 {[%clk 0:00:06]}  Rd8 {[%clk 0:00:04]} 32. h3 {[%clk 0:00:05]}  Kg7 {[%clk 0:00:04]} 33. Qe7 {[%clk 0:00:04]}  Qf6 {[%clk 0:00:04]} 34. Qxf6+ {[%clk 0:00:02]}  Kxf6 {[%clk 0:00:05]} 35. Kf1 {[%clk 0:00:01]}  Ke6 {[%clk 0:00:05]} 36. Rd6+ {[%clk 0:00:02]}  Ke7 {[%clk 0:00:06]} 37. Ke2 {[%clk 0:00:02]}  f6 {[%clk 0:00:05]} 38. Kd3 {[%clk 0:00:02]}  g5 {[%clk 0:00:05]} 39. Kd4 {[%clk 0:00:01]}  h4 {[%clk 0:00:04]} 40. Kd5 {[%clk 0:00:02]}  f5 {[%clk 0:00:04]} 41. c6 {[%clk 0:00:01]}  bxc6+ {[%clk 0:00:04]} 42. Kxc6 {[%clk 0:00:01]}  g4 {[%clk 0:00:05]} 43. hxg4 {[%clk 0:00:01]}  fxg4 {[%clk 0:00:05]} 44. Rh6 {[%clk 0:00:01]}  Ra8 {[%clk 0:00:05]} 45. Rh7+ {[%clk 0:00:01]}  Kf6 {[%clk 0:00:05]} 0-1


[Site "https://www.chess.com"]

[Event "Titled Tuesday Blitz November 01 Late 2022"]
[White "D`Arruda, Ricardo D."]
[Black "Roque Sola, Gisela"]
[WhiteFideId "100692"]
[BlackFideId "5120241"]
[WhiteElo "2482"]
[BlackElo "1961"]
[Result "0-1"]
[Round "06"]
[TimeControl "180+1"]
[Date "2022.11.02"]
[WhiteClock "0:01:20"]
[BlackClock "0:01:51"]

1. d4 {[%clk 0:02:56]}  Nf6 {[%clk 0:02:58]} 2. Nf3 {[%clk 0:02:55]}  d5 {[%clk 0:02:57]} 3. g3 {[%clk 0:02:54]}  e6 {[%clk 0:02:55]} 4. Bg2 {[%clk 0:02:54]}  Be7 {[%clk 0:02:55]} 5. O-O {[%clk 0:02:53]}  O-O {[%clk 0:02:55]} 6. c4 {[%clk 0:02:53]}  dxc4 {[%clk 0:02:55]} 7. Ne5 {[%clk 0:02:51]}  Nc6 {[%clk 0:02:54]} 8. Nxc6 {[%clk 0:02:46]}  bxc6 {[%clk 0:02:55]} 9. Bxc6 {[%clk 0:02:41]}  Rb8 {[%clk 0:02:55]} 10. Nc3 {[%clk 0:02:41]}  Ba6 {[%clk 0:02:50]} 11. Qa4 {[%clk 0:02:35]}  Qc8 {[%clk 0:02:50]} 12. Bf3 {[%clk 0:02:30]}  Rd8 {[%clk 0:02:48]} 13. Rd1 {[%clk 0:02:27]}  Nd5 {[%clk 0:02:24]} 14. e4 {[%clk 0:02:12]}  Nb4 {[%clk 0:02:11]} 15. d5 {[%clk 0:01:44]}  Bf6 {[%clk 0:02:02]} 16. Be3 {[%clk 0:01:30]}  Nd3 {[%clk 0:01:53]} 17. Bxa7 {[%clk 0:01:22]}  Nxb2 {[%clk 0:01:51]} 18. Bxb8 {[%clk 0:01:20]}  Nxa4 {[%clk 0:01:51]} 0-1


[Site "https://www.chess.com"]

[Event "Titled Tuesday Blitz November 01 Late 2022"]
[White "Diaz Rosas, Julio Cesar"]
[Black "Silva Lucena, Cristian"]
[WhiteFideId "5105099"]
[BlackFideId "2232588"]
[WhiteElo "2246"]
[BlackElo "2223"]
[Result "0-1"]
[Round "06"]
[TimeControl "180+1"]
[Date "2022.11.02"]
[WhiteClock "0:00:02"]
[BlackClock "0:00:28"]

1. d4 {[%clk 0:03:00]}  Nf6 {[%clk 0:02:58]} 2. c4 {[%clk 0:03:00]}  g6 {[%clk 0:02:57]} 3. Nc3 {[%clk 0:02:59]}  Bg7 {[%clk 0:02:57]} 4. e4 {[%clk 0:02:58]}  d6 {[%clk 0:02:58]} 5. Nge2 {[%clk 0:02:58]}  O-O {[%clk 0:02:58]} 6. Ng3 {[%clk 0:02:55]}  e5 {[%clk 0:02:58]} 7. d5 {[%clk 0:02:54]}  a5 {[%clk 0:02:56]} 8. h4 {[%clk 0:02:53]}  h5 {[%clk 0:02:54]} 9. Bg5 {[%clk 0:02:52]}  Qe8 {[%clk 0:02:55]} 10. Qd2 {[%clk 0:02:51]}  Na6 {[%clk 0:02:54]} 11. Be2 {[%clk 0:02:47]}  Nc5 {[%clk 0:02:55]} 12. Bh6 {[%clk 0:02:44]}  Bd7 {[%clk 0:02:45]} 13. Qg5 {[%clk 0:02:32]}  Nh7 {[%clk 0:02:22]} 14. Qd2 {[%clk 0:02:29]}  Qe7 {[%clk 0:02:16]} 15. O-O-O {[%clk 0:02:08]}  a4 {[%clk 0:02:11]} 16. Rdf1 {[%clk 0:02:03]}  a3 {[%clk 0:02:09]} 17. b3 {[%clk 0:01:55]}  f5 {[%clk 0:02:01]} 18. exf5 {[%clk 0:01:49]}  Bxf5 {[%clk 0:01:57]} 19. Nxf5 {[%clk 0:01:42]}  Rxf5 {[%clk 0:01:57]} 20. Bxg7 {[%clk 0:01:40]}  Qxg7 {[%clk 0:01:55]} 21. g4 {[%clk 0:01:16]}  hxg4 {[%clk 0:01:51]} 22. Bxg4 {[%clk 0:01:16]}  Rf4 {[%clk 0:01:51]} 23. Rhg1 {[%clk 0:01:06]}  Rd4 {[%clk 0:01:48]} 24. Qc2 {[%clk 0:01:04]}  e4 {[%clk 0:01:48]} 25. Be6+ {[%clk 0:01:00]}  Kh8 {[%clk 0:01:47]} 26. h5 {[%clk 0:00:55]}  g5 {[%clk 0:01:47]} 27. Bf5 {[%clk 0:00:49]}  Rf8 {[%clk 0:01:37]} 28. Bxe4 {[%clk 0:00:32]}  Rxe4 {[%clk 0:01:02]} 29. Nxe4 {[%clk 0:00:30]}  Qa1+ {[%clk 0:01:02]} 30. Kd2 {[%clk 0:00:29]}  Nxe4+ {[%clk 0:01:02]} 31. Qxe4 {[%clk 0:00:29]}  Qb2+ {[%clk 0:00:55]} 32. Qc2 {[%clk 0:00:27]}  Qd4+ {[%clk 0:00:53]} 33. Qd3 {[%clk 0:00:16]}  Rxf2+ {[%clk 0:00:51]} 34. Rxf2 {[%clk 0:00:10]}  Qxf2+ {[%clk 0:00:51]} 35. Qe2 {[%clk 0:00:10]}  Qd4+ {[%clk 0:00:40]} 36. Kc2 {[%clk 0:00:08]}  Qxg1 {[%clk 0:00:31]} 37. Qe8+ {[%clk 0:00:08]}  Kg7 {[%clk 0:00:30]} 38. Qg6+ {[%clk 0:00:05]}  Kf8 {[%clk 0:00:30]} 39. Qxh7 {[%clk 0:00:03]}  Qf2+ {[%clk 0:00:30]} 40. Kc3 {[%clk 0:00:02]}  Qe1+ {[%clk 0:00:28]} 0-1


[Site "https://www.chess.com"]

[Event "Titled Tuesday Blitz November 01 Late 2022"]
[White "Eljanov, Pavel"]
[Black "Putnam, Liam"]
[WhiteFideId "14102951"]
[BlackFideId "30938279"]
[WhiteElo "2601"]
[BlackElo "2082"]
[Result "0-1"]
[Round "06"]
[TimeControl "180+1"]
[Date "2022.11.02"]
[WhiteClock "0:00:04"]
[BlackClock "0:00:04"]

1. c4 {[%clk 0:03:00]}  e5 {[%clk 0:02:59]} 2. d3 {[%clk 0:03:00]}  Nc6 {[%clk 0:03:00]} 3. g3 {[%clk 0:02:59]}  h5 {[%clk 0:02:59]} 4. Nf3 {[%clk 0:02:57]}  Bc5 {[%clk 0:02:51]} 5. Bg2 {[%clk 0:02:53]}  a6 {[%clk 0:02:41]} 6. Nc3 {[%clk 0:02:53]}  d6 {[%clk 0:02:41]} 7. e3 {[%clk 0:02:49]}  Bg4 {[%clk 0:02:26]} 8. h3 {[%clk 0:02:48]}  Bf5 {[%clk 0:02:26]} 9. a3 {[%clk 0:02:47]}  Nf6 {[%clk 0:02:13]} 10. b4 {[%clk 0:02:37]}  Ba7 {[%clk 0:01:58]} 11. Bb2 {[%clk 0:02:37]}  Qd7 {[%clk 0:01:43]} 12. Qc2 {[%clk 0:02:34]}  O-O {[%clk 0:01:30]} 13. Ng5 {[%clk 0:02:26]}  Ne7 {[%clk 0:01:23]} 14. Bxb7 {[%clk 0:02:24]}  Rab8 {[%clk 0:01:16]} 15. Bg2 {[%clk 0:02:24]}  c6 {[%clk 0:01:11]} 16. O-O {[%clk 0:02:19]}  d5 {[%clk 0:01:10]} 17. e4 {[%clk 0:02:12]}  Bg6 {[%clk 0:01:05]} 18. exd5 {[%clk 0:02:08]}  cxd5 {[%clk 0:01:06]} 19. c5 {[%clk 0:02:08]}  Nc6 {[%clk 0:01:03]} 20. h4 {[%clk 0:01:45]}  Nd4 {[%clk 0:01:00]} 21. Qd1 {[%clk 0:01:45]}  a5 {[%clk 0:00:57]} 22. Ne2 {[%clk 0:01:39]}  Nc6 {[%clk 0:00:44]} 23. d4 {[%clk 0:01:25]}  e4 {[%clk 0:00:31]} 24. Nf4 {[%clk 0:01:24]}  axb4 {[%clk 0:00:29]} 25. Nxg6 {[%clk 0:01:24]}  fxg6 {[%clk 0:00:30]} 26. Bh3 {[%clk 0:01:21]}  Qe7 {[%clk 0:00:26]} 27. axb4 {[%clk 0:01:12]}  Rxb4 {[%clk 0:00:26]} 28. Bc3 {[%clk 0:00:56]}  Rc4 {[%clk 0:00:25]} 29. Ra3 {[%clk 0:00:45]}  Kh8 {[%clk 0:00:21]} 30. Ne6 {[%clk 0:00:39]}  Re8 {[%clk 0:00:18]} 31. Nf4 {[%clk 0:00:39]}  Qf7 {[%clk 0:00:18]} 32. Qd2 {[%clk 0:00:33]}  Bb8 {[%clk 0:00:15]} 33. Rb1 {[%clk 0:00:31]}  e3 {[%clk 0:00:13]} 34. fxe3 {[%clk 0:00:30]}  Ne4 {[%clk 0:00:13]} 35. Qe1 {[%clk 0:00:29]}  Bxf4 {[%clk 0:00:13]} 36. gxf4 {[%clk 0:00:27]}  Nxc3 {[%clk 0:00:12]} 37. Rxc3 {[%clk 0:00:27]}  Nxd4 {[%clk 0:00:12]} 38. Kg2 {[%clk 0:00:20]}  Nc2 {[%clk 0:00:11]} 39. Qd2 {[%clk 0:00:17]}  Rxc3 {[%clk 0:00:10]} 40. Qxc3 {[%clk 0:00:18]}  Nxe3+ {[%clk 0:00:11]} 41. Kg3 {[%clk 0:00:16]}  Nc4 {[%clk 0:00:10]} 42. Re1 {[%clk 0:00:15]}  Ra8 {[%clk 0:00:06]} 43. Qd4 {[%clk 0:00:12]}  Ra3+ {[%clk 0:00:06]} 44. Kh2 {[%clk 0:00:12]}  Ra2+ {[%clk 0:00:06]} 45. Kh1 {[%clk 0:00:13]}  Rd2 {[%clk 0:00:05]} 46. Qc3 {[%clk 0:00:08]}  Qxf4 {[%clk 0:00:04]} 47. Bg2 {[%clk 0:00:04]}  Qxh4+ {[%clk 0:00:04]} 0-1


[Site "https://www.chess.com"]

[Event "Titled Tuesday Blitz November 01 Late 2022"]
[White "Ernst, Sipke"]
[Black "Predke, Alexandr"]
[WhiteFideId "1004689"]
[BlackFideId "24107581"]
[WhiteElo "2438"]
[BlackElo "2614"]
[Result "0-1"]
[Round "06"]
[TimeControl "180+1"]
[Date "2022.11.01"]
[WhiteClock "0:00:31"]
[BlackClock "0:00:47"]

1. Nf3 {[%clk 0:03:00]}  Nf6 {[%clk 0:02:55]} 2. c4 {[%clk 0:02:59]}  e6 {[%clk 0:02:55]} 3. g3 {[%clk 0:02:59]}  d5 {[%clk 0:02:56]} 4. Bg2 {[%clk 0:02:58]}  Be7 {[%clk 0:02:56]} 5. O-O {[%clk 0:02:58]}  O-O {[%clk 0:02:57]} 6. b3 {[%clk 0:02:56]}  d4 {[%clk 0:02:57]} 7. e3 {[%clk 0:02:54]}  c5 {[%clk 0:02:56]} 8. exd4 {[%clk 0:02:53]}  cxd4 {[%clk 0:02:57]} 9. d3 {[%clk 0:02:52]}  Nc6 {[%clk 0:02:56]} 10. Re1 {[%clk 0:02:51]}  Nd7 {[%clk 0:02:52]} 11. Ba3 {[%clk 0:02:49]}  Bxa3 {[%clk 0:02:50]} 12. Nxa3 {[%clk 0:02:48]}  Nc5 {[%clk 0:02:19]} 13. Nc2 {[%clk 0:02:45]}  a5 {[%clk 0:02:17]} 14. Rb1 {[%clk 0:02:45]}  Qd6 {[%clk 0:02:13]} 15. a3 {[%clk 0:02:35]}  Bd7 {[%clk 0:02:06]} 16. Ng5 {[%clk 0:02:26]}  h6 {[%clk 0:02:05]} 17. Ne4 {[%clk 0:02:09]}  Nxe4 {[%clk 0:02:05]} 18. Bxe4 {[%clk 0:02:09]}  f5 {[%clk 0:01:44]} 19. Bg2 {[%clk 0:02:09]}  e5 {[%clk 0:01:44]} 20. b4 {[%clk 0:02:03]}  axb4 {[%clk 0:01:38]} 21. axb4 {[%clk 0:02:03]}  e4 {[%clk 0:01:28]} 22. dxe4 {[%clk 0:01:55]}  d3 {[%clk 0:01:29]} 23. c5 {[%clk 0:01:38]}  Qf6 {[%clk 0:01:28]} 24. Qxd3 {[%clk 0:01:34]}  Ne5 {[%clk 0:01:20]} 25. Qd2 {[%clk 0:01:13]}  f4 {[%clk 0:01:14]} 26. Qxf4 {[%clk 0:01:08]}  Qxf4 {[%clk 0:01:15]} 27. gxf4 {[%clk 0:01:08]}  Rxf4 {[%clk 0:01:16]} 28. b5 {[%clk 0:00:52]}  Ra2 {[%clk 0:01:06]} 29. Nd4 {[%clk 0:00:50]}  Rfxf2 {[%clk 0:01:03]} 30. Bf1 {[%clk 0:00:35]}  Rfd2 {[%clk 0:00:54]} 31. c6 {[%clk 0:00:34]}  bxc6 {[%clk 0:00:50]} 32. bxc6 {[%clk 0:00:32]}  Rxd4 {[%clk 0:00:50]} 33. Re2 {[%clk 0:00:31]}  Rxe2 {[%clk 0:00:47]} 0-1


[Site "https://www.chess.com"]

[Event "Titled Tuesday Blitz November 01 Late 2022"]
[White "Ezat, Mohamed"]
[Black "Marchesich, Giovanni"]
[WhiteFideId "10600906"]
[BlackFideId "2824790"]
[WhiteElo "2386"]
[BlackElo "2200"]
[Result "1-0"]
[Round "06"]
[TimeControl "180+1"]
[Date "2022.11.02"]
[WhiteClock "0:00:15"]
[BlackClock "0:00:01"]

1. d4 {[%clk 0:02:54]}  f6 {[%clk 0:02:57]} 2. e4 {[%clk 0:02:53]}  g6 {[%clk 0:02:57]} 3. e5 {[%clk 0:02:51]}  f5 {[%clk 0:02:54]} 4. h4 {[%clk 0:02:50]}  Bh6 {[%clk 0:02:46]} 5. h5 {[%clk 0:02:49]}  g5 {[%clk 0:02:30]} 6. d5 {[%clk 0:02:43]}  e6 {[%clk 0:02:29]} 7. dxe6 {[%clk 0:02:42]}  dxe6 {[%clk 0:02:28]} 8. Qxd8+ {[%clk 0:02:42]}  Kxd8 {[%clk 0:02:29]} 9. Nc3 {[%clk 0:02:42]}  Nc6 {[%clk 0:02:23]} 10. f4 {[%clk 0:02:36]}  gxf4 {[%clk 0:02:22]} 11. Nf3 {[%clk 0:02:36]}  Nge7 {[%clk 0:02:20]} 12. Bb5 {[%clk 0:02:31]}  a6 {[%clk 0:02:20]} 13. Ba4 {[%clk 0:02:30]}  b5 {[%clk 0:02:18]} 14. Bb3 {[%clk 0:02:30]}  Na5 {[%clk 0:02:17]} 15. Ne2 {[%clk 0:02:19]}  Nxb3 {[%clk 0:02:16]} 16. axb3 {[%clk 0:02:18]}  Nd5 {[%clk 0:02:13]} 17. Bd2 {[%clk 0:02:12]}  Bb7 {[%clk 0:02:06]} 18. O-O-O {[%clk 0:01:47]}  Ke7 {[%clk 0:02:03]} 19. Rh4 {[%clk 0:01:30]}  Rhg8 {[%clk 0:01:56]} 20. c4 {[%clk 0:01:27]}  Ne3 {[%clk 0:01:55]} 21. Bb4+ {[%clk 0:01:25]}  Kf7 {[%clk 0:01:53]} 22. Rd7+ {[%clk 0:01:25]}  Ke8 {[%clk 0:01:53]} 23. Rxh7 {[%clk 0:01:19]}  Rxg2 {[%clk 0:01:42]} 24. Ned4 {[%clk 0:01:04]}  Bxf3 {[%clk 0:01:12]} 25. Nxe6 {[%clk 0:00:36]}  Rg1+ {[%clk 0:00:59]} 26. Kd2 {[%clk 0:00:35]}  Rd1+ {[%clk 0:00:51]} 27. Kc3 {[%clk 0:00:34]}  Rc1+ {[%clk 0:00:45]} 28. Kd4 {[%clk 0:00:34]}  Nc2+ {[%clk 0:00:35]} 29. Kc5 {[%clk 0:00:34]}  Nxb4 {[%clk 0:00:35]} 30. Kxb4 {[%clk 0:00:31]}  Bf8+ {[%clk 0:00:28]} 31. c5 {[%clk 0:00:30]}  Rc8 {[%clk 0:00:12]} 32. Rxf4 {[%clk 0:00:25]}  Bd5 {[%clk 0:00:08]} 33. Nxf8 {[%clk 0:00:20]}  a5+ {[%clk 0:00:02]} 34. Kxb5 {[%clk 0:00:19]}  c6+ {[%clk 0:00:02]} 35. Kb6 {[%clk 0:00:18]}  Rb8+ {[%clk 0:00:02]} 36. Kc7 {[%clk 0:00:19]}  Rxb3 {[%clk 0:00:02]} 37. Nd7 {[%clk 0:00:15]}  Rxb2 {[%clk 0:00:01]} 38. Kd6 {[%clk 0:00:15]} 1-0


[Site "https://www.chess.com"]